Department family,Entity,Date,Expense Type,Expense area,Supplier,Transaction number,AP Amount (�)
Department of Health,NHS Rotherham CCG,31/05/2019,Clinical&Medical-Voluntary Sector,COMMISSIONING - NON ACUTE,AGE UK ROTHERHAM,27108051,"70,000.00"
Department of Health,NHS Rotherham CCG,31/05/2019,Hcare Srv Rec Fdtn Trust-Contract Baseline,ACUTE COMMISSIONING,BARNSLEY HOSPITAL NHS FOUNDATION TRUST,27107953,"149,100.00"
Department of Health,NHS Rotherham CCG,31/05/2019,Clinical&Medical-Commercial Sector,ACUTE COMMISSIONING,BMI HEALTHCARE LTD,27119003,"34,405.77"
Department of Health,NHS Rotherham CCG,31/05/2019,Clinical&Medical-Commercial Sector,ACUTE COMMISSIONING,CARE UK CLINICAL SERVICES LTD,27142000,"49,555.00"
Department of Health,NHS Rotherham CCG,31/05/2019,Computer Hardware Purch,IM&T PROJECTS,CHANNEL 3 CONSULTING LTD,27178002,"30,000.00"
Department of Health,NHS Rotherham CCG,31/05/2019,Computer Hardware Purch,IM&T PROJECTS,CHANNEL 3 CONSULTING LTD,27178003,"60,000.00"
Department of Health,NHS Rotherham CCG,31/05/2019,Clinical&Medical-Commercial Sector,ACUTE COMMISSIONING,CLAREMONT HOSPITAL,27273770,"47,408.00"
Department of Health,NHS Rotherham CCG,31/05/2019,Clinical&Medical-Voluntary Sector,PROGRAMME PROJECTS,CROSSROADS CARE ROTHERHAM,27209870,"61,278.00"
Department of Health,NHS Rotherham CCG,43585,Hcare Srv Rec Fdtn Trust-Contract Baseline,ACUTE COMMISSIONING,DONCASTER AND BASSETLAW HOSPITALS NHS FOUNDATION TRUST,26993046,"809,381.00"
Department of Health,NHS Rotherham CCG,43585,Hcare Srv Rec Fdtn Trust-Contract Baseline,ACUTE COMMISSIONING,DONCASTER AND BASSETLAW HOSPITALS NHS FOUNDATION TRUST,26993048,"-29,721.00"
Department of Health,NHS Rotherham CCG,31/05/2019,C&M-PMS Contract Value,PRC DELEGATED CO-COMMISSIONING,NHS ROTHERHAM CCG GP PRACTICE,27185054,"38,280.33"
Department of Health,NHS Rotherham CCG,31/05/2019,C&M-PMS DES Learn Dsblty Hlth Chk,PRC DELEGATED CO-COMMISSIONING,NHS ROTHERHAM CCG GP PRACTICE,27185054,"1,960.00"
Department of Health,NHS Rotherham CCG,31/05/2019,C&M-PMS Out of Hours Opt Outs,PRC DELEGATED CO-COMMISSIONING,NHS ROTHERHAM CCG GP PRACTICE,27185054,10.08
Department of Health,NHS Rotherham CCG,31/05/2019,C&M-PMS Prem Healthcentre Rent,PRC DELEGATED CO-COMMISSIONING,NHS ROTHERHAM CCG GP PRACTICE,27185054,996.69
Department of Health,NHS Rotherham CCG,31/05/2019,C&M-PMS Prem Notional Rent,PRC DELEGATED CO-COMMISSIONING,NHS ROTHERHAM CCG GP PRACTICE,27185054,"2,833.33"
Department of Health,NHS Rotherham CCG,31/05/2019,C&M-PMS Prem Rates,PRC DELEGATED CO-COMMISSIONING,NHS ROTHERHAM CCG GP PRACTICE,27185054,662.00
Department of Health,NHS Rotherham CCG,31/05/2019,C&M-PMS Prem Water Rates,PRC DELEGATED CO-COMMISSIONING,NHS ROTHERHAM CCG GP PRACTICE,27185054,132.18
Department of Health,NHS Rotherham CCG,31/05/2019,C&M-PMS QOF Aspiration,PRC DELEGATED CO-COMMISSIONING,NHS ROTHERHAM CCG GP PRACTICE,27185054,"3,168.86"
Department of Health,NHS Rotherham CCG,31/05/2019,C&M-PMS Contract Value,PRC DELEGATED CO-COMMISSIONING,NHS ROTHERHAM CCG GP PRACTICE,27185052,"98,916.28"
Department of Health,NHS Rotherham CCG,31/05/2019,C&M-PMS DES Learn Dsblty Hlth Chk,PRC DELEGATED CO-COMMISSIONING,NHS ROTHERHAM CCG GP PRACTICE,27185052,"2,800.00"
Department of Health,NHS Rotherham CCG,31/05/2019,C&M-PMS Prem Notional Rent,PRC DELEGATED CO-COMMISSIONING,NHS ROTHERHAM CCG GP PRACTICE,27185052,"7,331.33"
Department of Health,NHS Rotherham CCG,31/05/2019,C&M-PMS QOF Aspiration,PRC DELEGATED CO-COMMISSIONING,NHS ROTHERHAM CCG GP PRACTICE,27185052,"10,425.94"
Department of Health,NHS Rotherham CCG,31/05/2019,C&M-PMS Contract Value,PRC DELEGATED CO-COMMISSIONING,NHS ROTHERHAM CCG GP PRACTICE,27185056,"93,121.92"
Department of Health,NHS Rotherham CCG,31/05/2019,C&M-PMS DES Learn Dsblty Hlth Chk,PRC DELEGATED CO-COMMISSIONING,NHS ROTHERHAM CCG GP PRACTICE,27185056,"7,420.00"
Department of Health,NHS Rotherham CCG,31/05/2019,C&M-PMS Out of Hours Opt Outs,PRC DELEGATED CO-COMMISSIONING,NHS ROTHERHAM CCG GP PRACTICE,27185056,2.34
Department of Health,NHS Rotherham CCG,31/05/2019,C&M-PMS QOF Aspiration,PRC DELEGATED CO-COMMISSIONING,NHS ROTHERHAM CCG GP PRACTICE,27185056,"8,615.94"
Department of Health,NHS Rotherham CCG,31/05/2019,C&M-GMS DES Learn Dsblty Hlth Chk,PRC DELEGATED CO-COMMISSIONING,NHS ROTHERHAM CCG GP PRACTICE,27428980,700.00
Department of Health,NHS Rotherham CCG,31/05/2019,C&M-GMS Global Sum,PRC DELEGATED CO-COMMISSIONING,NHS ROTHERHAM CCG GP PRACTICE,27428980,"46,507.16"
Department of Health,NHS Rotherham CCG,31/05/2019,C&M-GMS MPIG Correction Factor,PRC DELEGATED CO-COMMISSIONING,NHS ROTHERHAM CCG GP PRACTICE,27428980,61.70
Department of Health,NHS Rotherham CCG,31/05/2019,C&M-GMS PCO Other,PRC DELEGATED CO-COMMISSIONING,NHS ROTHERHAM CCG GP PRACTICE,27428980,"3,899.00"
Department of Health,NHS Rotherham CCG,31/05/2019,C&M-GMS Prem Notional Rent,PRC DELEGATED CO-COMMISSIONING,NHS ROTHERHAM CCG GP PRACTICE,27428980,"2,991.67"
Department of Health,NHS Rotherham CCG,31/05/2019,C&M-GMS Prem Rates,PRC DELEGATED CO-COMMISSIONING,NHS ROTHERHAM CCG GP PRACTICE,27428980,355.32
Department of Health,NHS Rotherham CCG,31/05/2019,C&M-GMS QOF Aspiration,PRC DELEGATED CO-COMMISSIONING,NHS ROTHERHAM CCG GP PRACTICE,27428980,"5,424.35"
Department of Health,NHS Rotherham CCG,31/05/2019,ME - GMS GP Prior Year ERs,PRC DELEGATED CO-COMMISSIONING,NHS ROTHERHAM CCG GP PRACTICE,27428980,"1,473.95"
Department of Health,NHS Rotherham CCG,31/05/2019,ME-GMS GP Pension EEs Adjustments,PRC DELEGATED CO-COMMISSIONING,NHS ROTHERHAM CCG GP PRACTICE,27428980,"1,486.25"
Department of Health,NHS Rotherham CCG,31/05/2019,ME-GMS GP Pension ERs Adjustments,PRC DELEGATED CO-COMMISSIONING,NHS ROTHERHAM CCG GP PRACTICE,27428980,"1,473.95"
Department of Health,NHS Rotherham CCG,31/05/2019,ME-GMS GP Prior Year EEs,PRC DELEGATED CO-COMMISSIONING,NHS ROTHERHAM CCG GP PRACTICE,27428980,"1,486.25"
Department of Health,NHS Rotherham CCG,31/05/2019,C&M-PMS Contract Value,PRC DELEGATED CO-COMMISSIONING,NHS ROTHERHAM CCG GP PRACTICE,27185062,"111,028.33"
Department of Health,NHS Rotherham CCG,31/05/2019,C&M-PMS DES Learn Dsblty Hlth Chk,PRC DELEGATED CO-COMMISSIONING,NHS ROTHERHAM CCG GP PRACTICE,27185062,"1,820.00"
Department of Health,NHS Rotherham CCG,31/05/2019,C&M-PMS Out of Hours Opt Outs,PRC DELEGATED CO-COMMISSIONING,NHS ROTHERHAM CCG GP PRACTICE,27185062,42.40
Department of Health,NHS Rotherham CCG,31/05/2019,C&M-PMS PCO Other,PRC DELEGATED CO-COMMISSIONING,NHS ROTHERHAM CCG GP PRACTICE,27185062,"8,064.00"
Department of Health,NHS Rotherham CCG,31/05/2019,C&M-PMS Prem Healthcentre Rent,PRC DELEGATED CO-COMMISSIONING,NHS ROTHERHAM CCG GP PRACTICE,27185062,"1,785.74"
Department of Health,NHS Rotherham CCG,31/05/2019,C&M-PMS QOF Aspiration,PRC DELEGATED CO-COMMISSIONING,NHS ROTHERHAM CCG GP PRACTICE,27185062,"9,254.42"
Department of Health,NHS Rotherham CCG,31/05/2019,C&M-GMS DES Learn Dsblty Hlth Chk,PRC DELEGATED CO-COMMISSIONING,NHS ROTHERHAM CCG GP PRACTICE,27405842,"4,620.00"
Department of Health,NHS Rotherham CCG,31/05/2019,C&M-GMS Global Sum,PRC DELEGATED CO-COMMISSIONING,NHS ROTHERHAM CCG GP PRACTICE,27405842,"88,634.18"
Department of Health,NHS Rotherham CCG,31/05/2019,C&M-GMS MPIG Correction Factor,PRC DELEGATED CO-COMMISSIONING,NHS ROTHERHAM CCG GP PRACTICE,27405842,"1,286.10"
Department of Health,NHS Rotherham CCG,31/05/2019,C&M-GMS PCO Other,PRC DELEGATED CO-COMMISSIONING,NHS ROTHERHAM CCG GP PRACTICE,27405842,"7,130.00"
Department of Health,NHS Rotherham CCG,31/05/2019,C&M-GMS Prem Notional Rent,PRC DELEGATED CO-COMMISSIONING,NHS ROTHERHAM CCG GP PRACTICE,27405842,"7,413.75"
Department of Health,NHS Rotherham CCG,31/05/2019,C&M-GMS Prem Water Rates,PRC DELEGATED CO-COMMISSIONING,NHS ROTHERHAM CCG GP PRACTICE,27405842,183.25
Department of Health,NHS Rotherham CCG,31/05/2019,C&M-GMS QOF Aspiration,PRC DELEGATED CO-COMMISSIONING,NHS ROTHERHAM CCG GP PRACTICE,27405842,"9,939.77"
Department of Health,NHS Rotherham CCG,31/05/2019,C&M-GMS GP Statutory Levy,PRC DELEGATED CO-COMMISSIONING,NHS ROTHERHAM CCG GP PRACTICE,27428979,-330.08
Department of Health,NHS Rotherham CCG,31/05/2019,C&M-GMS Voluntary Levy,PRC DELEGATED CO-COMMISSIONING,NHS ROTHERHAM CCG GP PRACTICE,27428979,-48.54
Department of Health,NHS Rotherham CCG,31/05/2019,ME - GMS GP Prior Year ERs,PRC DELEGATED CO-COMMISSIONING,NHS ROTHERHAM CCG GP PRACTICE,27428979,-565.95
Department of Health,NHS Rotherham CCG,31/05/2019,ME - GMS TPS Added Years Adj EEs,PRC DELEGATED CO-COMMISSIONING,NHS ROTHERHAM CCG GP PRACTICE,27428979,-218.45
Department of Health,NHS Rotherham CCG,31/05/2019,ME-GMS GP Pension EEs,PRC DELEGATED CO-COMMISSIONING,NHS ROTHERHAM CCG GP PRACTICE,27428979,"-13,314.59"
Department of Health,NHS Rotherham CCG,31/05/2019,ME-GMS GP Pension ERs Adjustments,PRC DELEGATED CO-COMMISSIONING,NHS ROTHERHAM CCG GP PRACTICE,27428979,"-13,088.55"
Department of Health,NHS Rotherham CCG,31/05/2019,ME-GMS GP Prior Year AVCs,PRC DELEGATED CO-COMMISSIONING,NHS ROTHERHAM CCG GP PRACTICE,27428979,-265.57
Department of Health,NHS Rotherham CCG,31/05/2019,ME-GMS GP Prior Year EEs,PRC DELEGATED CO-COMMISSIONING,NHS ROTHERHAM CCG GP PRACTICE,27428979,-368.06
Department of Health,NHS Rotherham CCG,31/05/2019,C&M-PMS Contract Value,PRC DELEGATED CO-COMMISSIONING,NHS ROTHERHAM CCG GP PRACTICE,27185059,-206.62
Department of Health,NHS Rotherham CCG,31/05/2019,C&M-PMS GP Statutory Levy,PRC DELEGATED CO-COMMISSIONING,NHS ROTHERHAM CCG GP PRACTICE,27185059,-588.14
Department of Health,NHS Rotherham CCG,31/05/2019,C&M-PMS Out of Hours Opt Outs,PRC DELEGATED CO-COMMISSIONING,NHS ROTHERHAM CCG GP PRACTICE,27185059,"-8,034.00"
Department of Health,NHS Rotherham CCG,31/05/2019,C&M-PMS Voluntary Levy,PRC DELEGATED CO-COMMISSIONING,NHS ROTHERHAM CCG GP PRACTICE,27185059,-86.49
Department of Health,NHS Rotherham CCG,31/05/2019,ME - PMS TPS Added Years Adj EEs,PRC DELEGATED CO-COMMISSIONING,NHS ROTHERHAM CCG GP PRACTICE,27185059,-720.00
Department of Health,NHS Rotherham CCG,31/05/2019,ME-PMS GP Pension EEs-PMS,PRC DELEGATED CO-COMMISSIONING,NHS ROTHERHAM CCG GP PRACTICE,27185059,"-9,387.72"
Department of Health,NHS Rotherham CCG,31/05/2019,ME-PMS GP Pension ERs Adjs - PMS,PRC DELEGATED CO-COMMISSIONING,NHS ROTHERHAM CCG GP PRACTICE,27185059,"-9,928.19"
Department of Health,NHS Rotherham CCG,31/05/2019,C&M-PMS Contract Value,PRC DELEGATED CO-COMMISSIONING,NHS ROTHERHAM CCG GP PRACTICE,27185060,"170,894.50"
Department of Health,NHS Rotherham CCG,31/05/2019,C&M-PMS Dispensing Quality Sch,PRC DELEGATED CO-COMMISSIONING,NHS ROTHERHAM CCG GP PRACTICE,27185060,"3,552.66"
Department of Health,NHS Rotherham CCG,31/05/2019,C&M-PMS Out of Hours Opt Outs,PRC DELEGATED CO-COMMISSIONING,NHS ROTHERHAM CCG GP PRACTICE,27185060,9.72
Department of Health,NHS Rotherham CCG,31/05/2019,C&M-PMS PCO Other,PRC DELEGATED CO-COMMISSIONING,NHS ROTHERHAM CCG GP PRACTICE,27185060,"12,360.00"
Department of Health,NHS Rotherham CCG,31/05/2019,C&M-PMS Prem Actual Rent,PRC DELEGATED CO-COMMISSIONING,NHS ROTHERHAM CCG GP PRACTICE,27185060,"12,510.33"
Department of Health,NHS Rotherham CCG,31/05/2019,C&M-PMS Prem Notional Rent,PRC DELEGATED CO-COMMISSIONING,NHS ROTHERHAM CCG GP PRACTICE,27185060,"7,477.08"
Department of Health,NHS Rotherham CCG,31/05/2019,C&M-PMS Prem Rates,PRC DELEGATED CO-COMMISSIONING,NHS ROTHERHAM CCG GP PRACTICE,27185060,"4,907.00"
Department of Health,NHS Rotherham CCG,31/05/2019,C&M-PMS QOF Aspiration,PRC DELEGATED CO-COMMISSIONING,NHS ROTHERHAM CCG GP PRACTICE,27185060,"19,545.78"
Department of Health,NHS Rotherham CCG,31/05/2019,C&M-PMS Cost of Drugs -Dispensing,LOCAL ENHANCED SERVICES,NHS ROTHERHAM CCG GP PRACTICE,27444151,"49,983.18"
Department of Health,NHS Rotherham CCG,31/05/2019,C&M-PMS Prof fees Dispensing,PRC DELEGATED CO-COMMISSIONING,NHS ROTHERHAM CCG GP PRACTICE,27444151,"8,551.70"
Department of Health,NHS Rotherham CCG,31/05/2019,C&M-PMS Prsc Chrgs Cll&Rmttd by GPs,LOCAL ENHANCED SERVICES,NHS ROTHERHAM CCG GP PRACTICE,27444151,897.60
Department of Health,NHS Rotherham CCG,31/05/2019,C&M-PMS Contract Value,PRC DELEGATED CO-COMMISSIONING,NHS ROTHERHAM CCG GP PRACTICE,27185058,"95,655.67"
Department of Health,NHS Rotherham CCG,31/05/2019,C&M-PMS Prem Notional Rent,PRC DELEGATED CO-COMMISSIONING,NHS ROTHERHAM CCG GP PRACTICE,27185058,"14,528.58"
Department of Health,NHS Rotherham CCG,31/05/2019,C&M-PMS Prem Rates,PRC DELEGATED CO-COMMISSIONING,NHS ROTHERHAM CCG GP PRACTICE,27185058,"6,209.56"
Department of Health,NHS Rotherham CCG,31/05/2019,C&M-PMS QOF Aspiration,PRC DELEGATED CO-COMMISSIONING,NHS ROTHERHAM CCG GP PRACTICE,27185058,"10,795.81"
Department of Health,NHS Rotherham CCG,31/05/2019,C&M-PMS Cost of Drugs -Dispensing,LOCAL ENHANCED SERVICES,NHS ROTHERHAM CCG GP PRACTICE,27444148,"-27,382.30"
Department of Health,NHS Rotherham CCG,31/05/2019,C&M-PMS Prsc Chrgs Cll&Rmttd by GPs,PRC DELEGATED CO-COMMISSIONING,NHS ROTHERHAM CCG GP PRACTICE,27444148,"-1,311.20"
Department of Health,NHS Rotherham CCG,31/05/2019,C&M-PMS Cost of Drugs -Dispensing,LOCAL ENHANCED SERVICES,NHS ROTHERHAM CCG GP PRACTICE,27444149,"54,854.06"
Department of Health,NHS Rotherham CCG,31/05/2019,C&M-PMS Prof fees Dispensing,PRC DELEGATED CO-COMMISSIONING,NHS ROTHERHAM CCG GP PRACTICE,27444149,"12,139.73"
Department of Health,NHS Rotherham CCG,31/05/2019,C&M-PMS Prsc Chrgs Cll&Rmttd by GPs,LOCAL ENHANCED SERVICES,NHS ROTHERHAM CCG GP PRACTICE,27444149,"1,311.20"
Department of Health,NHS Rotherham CCG,31/05/2019,C&M-GMS DES Learn Dsblty Hlth Chk,PRC DELEGATED CO-COMMISSIONING,NHS ROTHERHAM CCG GP PRACTICE,27405844,"1,260.00"
Department of Health,NHS Rotherham CCG,31/05/2019,C&M-GMS Global Sum,PRC DELEGATED CO-COMMISSIONING,NHS ROTHERHAM CCG GP PRACTICE,27405844,"89,142.19"
Department of Health,NHS Rotherham CCG,31/05/2019,C&M-GMS MPIG Correction Factor,PRC DELEGATED CO-COMMISSIONING,NHS ROTHERHAM CCG GP PRACTICE,27405844,"1,086.44"
Department of Health,NHS Rotherham CCG,31/05/2019,C&M-GMS PCO Other,PRC DELEGATED CO-COMMISSIONING,NHS ROTHERHAM CCG GP PRACTICE,27405844,"7,166.00"
Department of Health,NHS Rotherham CCG,31/05/2019,C&M-GMS Prem Cost Rent,PRC DELEGATED CO-COMMISSIONING,NHS ROTHERHAM CCG GP PRACTICE,27405844,762.92
Department of Health,NHS Rotherham CCG,31/05/2019,C&M-GMS Prem Notional Rent,PRC DELEGATED CO-COMMISSIONING,NHS ROTHERHAM CCG GP PRACTICE,27405844,"9,116.66"
Department of Health,NHS Rotherham CCG,31/05/2019,C&M-GMS Prem Rates,PRC DELEGATED CO-COMMISSIONING,NHS ROTHERHAM CCG GP PRACTICE,27405844,"1,687.12"
Department of Health,NHS Rotherham CCG,31/05/2019,C&M-GMS Prem Water Rates,PRC DELEGATED CO-COMMISSIONING,NHS ROTHERHAM CCG GP PRACTICE,27405844,127.67
Department of Health,NHS Rotherham CCG,31/05/2019,C&M-GMS QOF Aspiration,PRC DELEGATED CO-COMMISSIONING,NHS ROTHERHAM CCG GP PRACTICE,27405844,"9,272.29"
Department of Health,NHS Rotherham CCG,31/05/2019,ME - GMS GP Prior Year ERs,PRC DELEGATED CO-COMMISSIONING,NHS ROTHERHAM CCG GP PRACTICE,27405844,"5,159.87"
Department of Health,NHS Rotherham CCG,31/05/2019,ME-GMS GP Prior Year EEs,PRC DELEGATED CO-COMMISSIONING,NHS ROTHERHAM CCG GP PRACTICE,27405844,"6,054.16"
Department of Health,NHS Rotherham CCG,31/05/2019,C&M-PMS Contract Value,PRC DELEGATED CO-COMMISSIONING,NHS ROTHERHAM CCG GP PRACTICE,27185065,-227.20
Department of Health,NHS Rotherham CCG,31/05/2019,C&M-PMS GP Statutory Levy,PRC DELEGATED CO-COMMISSIONING,NHS ROTHERHAM CCG GP PRACTICE,27185065,-373.07
Department of Health,NHS Rotherham CCG,31/05/2019,C&M-PMS Out of Hours Opt Outs,PRC DELEGATED CO-COMMISSIONING,NHS ROTHERHAM CCG GP PRACTICE,27185065,"-5,075.33"
Department of Health,NHS Rotherham CCG,31/05/2019,C&M-PMS Voluntary Levy,PRC DELEGATED CO-COMMISSIONING,NHS ROTHERHAM CCG GP PRACTICE,27185065,-54.86
Department of Health,NHS Rotherham CCG,31/05/2019,ME-PMS GP Pension EEs-PMS,PRC DELEGATED CO-COMMISSIONING,NHS ROTHERHAM CCG GP PRACTICE,27185065,"-11,160.60"
Department of Health,NHS Rotherham CCG,31/05/2019,ME-PMS GP Pension ERs Adjs - PMS,PRC DELEGATED CO-COMMISSIONING,NHS ROTHERHAM CCG GP PRACTICE,27185065,"-11,530.85"
Department of Health,NHS Rotherham CCG,31/05/2019,C&M-PMS Contract Value,PRC DELEGATED CO-COMMISSIONING,NHS ROTHERHAM CCG GP PRACTICE,27185066,"107,741.33"
Department of Health,NHS Rotherham CCG,31/05/2019,C&M-PMS Out of Hours Opt Outs,PRC DELEGATED CO-COMMISSIONING,NHS ROTHERHAM CCG GP PRACTICE,27185066,10.70
Department of Health,NHS Rotherham CCG,31/05/2019,C&M-PMS Prem Notional Rent,PRC DELEGATED CO-COMMISSIONING,NHS ROTHERHAM CCG GP PRACTICE,27185066,"9,300.00"
Department of Health,NHS Rotherham CCG,31/05/2019,C&M-PMS QOF Aspiration,PRC DELEGATED CO-COMMISSIONING,NHS ROTHERHAM CCG GP PRACTICE,27185066,"11,066.87"
Department of Health,NHS Rotherham CCG,31/05/2019,C&M-PMS Contract Value,PRC DELEGATED CO-COMMISSIONING,NHS ROTHERHAM CCG GP PRACTICE,27185063,-384.22
Department of Health,NHS Rotherham CCG,31/05/2019,C&M-PMS GP Statutory Levy,PRC DELEGATED CO-COMMISSIONING,NHS ROTHERHAM CCG GP PRACTICE,27185063,-496.40
Department of Health,NHS Rotherham CCG,31/05/2019,C&M-PMS Out of Hours Opt Outs,PRC DELEGATED CO-COMMISSIONING,NHS ROTHERHAM CCG GP PRACTICE,27185063,"-7,115.08"
Department of Health,NHS Rotherham CCG,31/05/2019,C&M-PMS Voluntary Levy,PRC DELEGATED CO-COMMISSIONING,NHS ROTHERHAM CCG GP PRACTICE,27185063,-73.00
Department of Health,NHS Rotherham CCG,31/05/2019,ME - PMS TPS Added Years Adj EEs,PRC DELEGATED CO-COMMISSIONING,NHS ROTHERHAM CCG GP PRACTICE,27185063,-176.27
Department of Health,NHS Rotherham CCG,31/05/2019,ME-PMS GP Pension EEs-PMS,PRC DELEGATED CO-COMMISSIONING,NHS ROTHERHAM CCG GP PRACTICE,27185063,"-9,237.87"
Department of Health,NHS Rotherham CCG,31/05/2019,ME-PMS GP Pension ERs Adjs - PMS,PRC DELEGATED CO-COMMISSIONING,NHS ROTHERHAM CCG GP PRACTICE,27185063,"-9,999.71"
Department of Health,NHS Rotherham CCG,31/05/2019,C&M-PMS Contract Value,PRC DELEGATED CO-COMMISSIONING,NHS ROTHERHAM CCG GP PRACTICE,27185064,"151,642.92"
Department of Health,NHS Rotherham CCG,31/05/2019,C&M-PMS Out of Hours Opt Outs,PRC DELEGATED CO-COMMISSIONING,NHS ROTHERHAM CCG GP PRACTICE,27185064,18.02
Department of Health,NHS Rotherham CCG,31/05/2019,C&M-PMS Prem Actual Rent,PRC DELEGATED CO-COMMISSIONING,NHS ROTHERHAM CCG GP PRACTICE,27185064,550.00
Department of Health,NHS Rotherham CCG,31/05/2019,C&M-PMS Prem Healthcentre Rent,PRC DELEGATED CO-COMMISSIONING,NHS ROTHERHAM CCG GP PRACTICE,27185064,542.41
Department of Health,NHS Rotherham CCG,31/05/2019,C&M-PMS Prem Notional Rent,PRC DELEGATED CO-COMMISSIONING,NHS ROTHERHAM CCG GP PRACTICE,27185064,"21,023.33"
Department of Health,NHS Rotherham CCG,31/05/2019,C&M-PMS Prem Rates,PRC DELEGATED CO-COMMISSIONING,NHS ROTHERHAM CCG GP PRACTICE,27185064,"6,663.00"
Department of Health,NHS Rotherham CCG,31/05/2019,C&M-PMS QOF Aspiration,PRC DELEGATED CO-COMMISSIONING,NHS ROTHERHAM CCG GP PRACTICE,27185064,"14,780.00"
Department of Health,NHS Rotherham CCG,31/05/2019,C&M-PMS Contract Value,PRC DELEGATED CO-COMMISSIONING,NHS ROTHERHAM CCG GP PRACTICE,27185089,"57,248.42"
Department of Health,NHS Rotherham CCG,31/05/2019,C&M-PMS DES Learn Dsblty Hlth Chk,PRC DELEGATED CO-COMMISSIONING,NHS ROTHERHAM CCG GP PRACTICE,27185089,280.00
Department of Health,NHS Rotherham CCG,31/05/2019,C&M-PMS Out of Hours Opt Outs,PRC DELEGATED CO-COMMISSIONING,NHS ROTHERHAM CCG GP PRACTICE,27185089,20.18
Department of Health,NHS Rotherham CCG,31/05/2019,C&M-PMS Prem Healthcentre Rent,PRC DELEGATED CO-COMMISSIONING,NHS ROTHERHAM CCG GP PRACTICE,27185089,"4,076.08"
Department of Health,NHS Rotherham CCG,31/05/2019,C&M-PMS QOF Aspiration,PRC DELEGATED CO-COMMISSIONING,NHS ROTHERHAM CCG GP PRACTICE,27185089,"5,425.84"
Department of Health,NHS Rotherham CCG,31/05/2019,C&M-GMS Global Sum,PRC DELEGATED CO-COMMISSIONING,NHS ROTHERHAM CCG GP PRACTICE,27405850,"27,255.49"
Department of Health,NHS Rotherham CCG,31/05/2019,C&M-GMS MPIG Correction Factor,PRC DELEGATED CO-COMMISSIONING,NHS ROTHERHAM CCG GP PRACTICE,27405850,44.99
Department of Health,NHS Rotherham CCG,31/05/2019,C&M-GMS Prem Healthcentre Rent,PRC DELEGATED CO-COMMISSIONING,NHS ROTHERHAM CCG GP PRACTICE,27405850,"2,648.21"
Department of Health,NHS Rotherham CCG,31/05/2019,C&M-GMS QOF Aspiration,PRC DELEGATED CO-COMMISSIONING,NHS ROTHERHAM CCG GP PRACTICE,27405850,"3,090.40"
Department of Health,NHS Rotherham CCG,31/05/2019,C&M-PMS Contract Value,PRC DELEGATED CO-COMMISSIONING,NHS ROTHERHAM CCG GP PRACTICE,27185070,"28,371.54"
Department of Health,NHS Rotherham CCG,31/05/2019,C&M-PMS DES Learn Dsblty Hlth Chk,PRC DELEGATED CO-COMMISSIONING,NHS ROTHERHAM CCG GP PRACTICE,27185070,"1,820.00"
Department of Health,NHS Rotherham CCG,31/05/2019,C&M-PMS Prem Notional Rent,PRC DELEGATED CO-COMMISSIONING,NHS ROTHERHAM CCG GP PRACTICE,27185070,"3,100.00"
Department of Health,NHS Rotherham CCG,31/05/2019,C&M-PMS QOF Aspiration,PRC DELEGATED CO-COMMISSIONING,NHS ROTHERHAM CCG GP PRACTICE,27185070,"2,978.58"
Department of Health,NHS Rotherham CCG,31/05/2019,C&M-PMS Contract Value,PRC DELEGATED CO-COMMISSIONING,NHS ROTHERHAM CCG GP PRACTICE,27185078,"55,589.99"
Department of Health,NHS Rotherham CCG,31/05/2019,C&M-PMS DES Learn Dsblty Hlth Chk,PRC DELEGATED CO-COMMISSIONING,NHS ROTHERHAM CCG GP PRACTICE,27185078,"1,260.00"
Department of Health,NHS Rotherham CCG,31/05/2019,C&M-PMS Prem Notional Rent,PRC DELEGATED CO-COMMISSIONING,NHS ROTHERHAM CCG GP PRACTICE,27185078,"6,791.67"
Department of Health,NHS Rotherham CCG,31/05/2019,C&M-PMS QOF Aspiration,PRC DELEGATED CO-COMMISSIONING,NHS ROTHERHAM CCG GP PRACTICE,27185078,"5,291.59"
Department of Health,NHS Rotherham CCG,31/05/2019,C&M-GMS DES Learn Dsblty Hlth Chk,PRC DELEGATED CO-COMMISSIONING,NHS ROTHERHAM CCG GP PRACTICE,27405846,560.00
Department of Health,NHS Rotherham CCG,31/05/2019,C&M-GMS Global Sum,PRC DELEGATED CO-COMMISSIONING,NHS ROTHERHAM CCG GP PRACTICE,27405846,"73,251.44"
Department of Health,NHS Rotherham CCG,31/05/2019,C&M-GMS PCO Other,PRC DELEGATED CO-COMMISSIONING,NHS ROTHERHAM CCG GP PRACTICE,27405846,"5,724.00"
Department of Health,NHS Rotherham CCG,31/05/2019,C&M-GMS Prem Notional Rent,PRC DELEGATED CO-COMMISSIONING,NHS ROTHERHAM CCG GP PRACTICE,27405846,"6,225.00"
Department of Health,NHS Rotherham CCG,31/05/2019,C&M-GMS Prem Rates,PRC DELEGATED CO-COMMISSIONING,NHS ROTHERHAM CCG GP PRACTICE,27405846,"1,074.00"
Department of Health,NHS Rotherham CCG,31/05/2019,C&M-GMS Prem Water Rates,PRC DELEGATED CO-COMMISSIONING,NHS ROTHERHAM CCG GP PRACTICE,27405846,240.90
Department of Health,NHS Rotherham CCG,31/05/2019,C&M-GMS QOF Aspiration,PRC DELEGATED CO-COMMISSIONING,NHS ROTHERHAM CCG GP PRACTICE,27405846,"7,535.78"
Department of Health,NHS Rotherham CCG,31/05/2019,C&M-GMS Global Sum,PRC DELEGATED CO-COMMISSIONING,NHS ROTHERHAM CCG GP PRACTICE,27405848,"30,497.10"
Department of Health,NHS Rotherham CCG,31/05/2019,C&M-GMS Prem Healthcentre Rent,PRC DELEGATED CO-COMMISSIONING,NHS ROTHERHAM CCG GP PRACTICE,27405848,"3,721.37"
Department of Health,NHS Rotherham CCG,31/05/2019,C&M-GMS QOF Aspiration,PRC DELEGATED CO-COMMISSIONING,NHS ROTHERHAM CCG GP PRACTICE,27405848,"2,683.09"
Department of Health,NHS Rotherham CCG,31/05/2019,C&M-PMS Contract Value,PRC DELEGATED CO-COMMISSIONING,NHS ROTHERHAM CCG GP PRACTICE,27185074,"67,812.28"
Department of Health,NHS Rotherham CCG,31/05/2019,C&M-PMS DES Learn Dsblty Hlth Chk,PRC DELEGATED CO-COMMISSIONING,NHS ROTHERHAM CCG GP PRACTICE,27185074,"2,380.00"
Department of Health,NHS Rotherham CCG,31/05/2019,C&M-PMS Prem Notional Rent,PRC DELEGATED CO-COMMISSIONING,NHS ROTHERHAM CCG GP PRACTICE,27185074,"4,200.00"
Department of Health,NHS Rotherham CCG,31/05/2019,C&M-PMS Prem Rates,PRC DELEGATED CO-COMMISSIONING,NHS ROTHERHAM CCG GP PRACTICE,27185074,"1,338.00"
Department of Health,NHS Rotherham CCG,31/05/2019,C&M-PMS QOF Aspiration,PRC DELEGATED CO-COMMISSIONING,NHS ROTHERHAM CCG GP PRACTICE,27185074,"6,241.30"
Department of Health,NHS Rotherham CCG,31/05/2019,C&M-PMS Contract Value,PRC DELEGATED CO-COMMISSIONING,NHS ROTHERHAM CCG GP PRACTICE,27202568,"52,551.75"
Department of Health,NHS Rotherham CCG,31/05/2019,C&M-PMS Out of Hours Opt Outs,PRC DELEGATED CO-COMMISSIONING,NHS ROTHERHAM CCG GP PRACTICE,27202568,59.24
Department of Health,NHS Rotherham CCG,31/05/2019,C&M-PMS PCO Locum Sickness,PRC DELEGATED CO-COMMISSIONING,NHS ROTHERHAM CCG GP PRACTICE,27202568,"4,117.00"
Department of Health,NHS Rotherham CCG,31/05/2019,C&M-PMS Prem Notional Rent,PRC DELEGATED CO-COMMISSIONING,NHS ROTHERHAM CCG GP PRACTICE,27202568,"3,645.83"
Department of Health,NHS Rotherham CCG,31/05/2019,C&M-PMS QOF Aspiration,PRC DELEGATED CO-COMMISSIONING,NHS ROTHERHAM CCG GP PRACTICE,27202568,"5,265.47"
Department of Health,NHS Rotherham CCG,31/05/2019,C&M-PMS Contract Value,PRC DELEGATED CO-COMMISSIONING,NHS ROTHERHAM CCG GP PRACTICE,27190693,"69,615.67"
Department of Health,NHS Rotherham CCG,31/05/2019,C&M-PMS DES Learn Dsblty Hlth Chk,PRC DELEGATED CO-COMMISSIONING,NHS ROTHERHAM CCG GP PRACTICE,27190693,560.00
Department of Health,NHS Rotherham CCG,31/05/2019,C&M-PMS PCO Other,PRC DELEGATED CO-COMMISSIONING,NHS ROTHERHAM CCG GP PRACTICE,27190693,"5,086.00"
Department of Health,NHS Rotherham CCG,31/05/2019,C&M-PMS Prem Healthcentre Rent,PRC DELEGATED CO-COMMISSIONING,NHS ROTHERHAM CCG GP PRACTICE,27190693,523.73
Department of Health,NHS Rotherham CCG,31/05/2019,C&M-PMS Prem Notional Rent,PRC DELEGATED CO-COMMISSIONING,NHS ROTHERHAM CCG GP PRACTICE,27190693,"3,402.08"
Department of Health,NHS Rotherham CCG,31/05/2019,C&M-PMS Prem Rates,PRC DELEGATED CO-COMMISSIONING,NHS ROTHERHAM CCG GP PRACTICE,27190693,"1,550.51"
Department of Health,NHS Rotherham CCG,31/05/2019,C&M-PMS QOF Aspiration,PRC DELEGATED CO-COMMISSIONING,NHS ROTHERHAM CCG GP PRACTICE,27190693,"5,951.76"
Department of Health,NHS Rotherham CCG,31/05/2019,C&M-PMS Contract Value,PRC DELEGATED CO-COMMISSIONING,NHS ROTHERHAM CCG GP PRACTICE,27190690,"50,770.38"
Department of Health,NHS Rotherham CCG,31/05/2019,C&M-PMS PCO Other,PRC DELEGATED CO-COMMISSIONING,NHS ROTHERHAM CCG GP PRACTICE,27190690,871.00
Department of Health,NHS Rotherham CCG,31/05/2019,C&M-PMS Prem Healthcentre Rent,PRC DELEGATED CO-COMMISSIONING,NHS ROTHERHAM CCG GP PRACTICE,27190690,"1,979.17"
Department of Health,NHS Rotherham CCG,31/05/2019,C&M-PMS QOF Aspiration,PRC DELEGATED CO-COMMISSIONING,NHS ROTHERHAM CCG GP PRACTICE,27190690,"4,116.14"
Department of Health,NHS Rotherham CCG,31/05/2019,C&M-PMS Contract Value,PRC DELEGATED CO-COMMISSIONING,NHS ROTHERHAM CCG GP PRACTICE,27185072,"47,316.42"
Department of Health,NHS Rotherham CCG,31/05/2019,C&M-PMS Out of Hours Opt Outs,PRC DELEGATED CO-COMMISSIONING,NHS ROTHERHAM CCG GP PRACTICE,27185072,18.32
Department of Health,NHS Rotherham CCG,31/05/2019,C&M-PMS Prem Notional Rent,PRC DELEGATED CO-COMMISSIONING,NHS ROTHERHAM CCG GP PRACTICE,27185072,"7,075.50"
Department of Health,NHS Rotherham CCG,31/05/2019,C&M-PMS QOF Aspiration,PRC DELEGATED CO-COMMISSIONING,NHS ROTHERHAM CCG GP PRACTICE,27185072,"3,946.92"
Department of Health,NHS Rotherham CCG,31/05/2019,C&M-PMS Contract Value,PRC DELEGATED CO-COMMISSIONING,NHS ROTHERHAM CCG GP PRACTICE,27185080,"38,499.97"
Department of Health,NHS Rotherham CCG,31/05/2019,C&M-PMS Prem Notional Rent,PRC DELEGATED CO-COMMISSIONING,NHS ROTHERHAM CCG GP PRACTICE,27185080,"3,204.17"
Department of Health,NHS Rotherham CCG,31/05/2019,C&M-PMS QOF Aspiration,PRC DELEGATED CO-COMMISSIONING,NHS ROTHERHAM CCG GP PRACTICE,27185080,"3,061.55"
Department of Health,NHS Rotherham CCG,31/05/2019,C&M-PMS Contract Value,PRC DELEGATED CO-COMMISSIONING,NHS ROTHERHAM CCG GP PRACTICE,27185082,"78,069.84"
Department of Health,NHS Rotherham CCG,31/05/2019,C&M-PMS PCO Other,PRC DELEGATED CO-COMMISSIONING,NHS ROTHERHAM CCG GP PRACTICE,27185082,"1,244.40"
Department of Health,NHS Rotherham CCG,31/05/2019,C&M-PMS Prem Notional Rent,PRC DELEGATED CO-COMMISSIONING,NHS ROTHERHAM CCG GP PRACTICE,27185082,"6,512.50"
Department of Health,NHS Rotherham CCG,31/05/2019,C&M-PMS Prem Rates,PRC DELEGATED CO-COMMISSIONING,NHS ROTHERHAM CCG GP PRACTICE,27185082,"1,919.00"
Department of Health,NHS Rotherham CCG,31/05/2019,C&M-PMS Prem Water Rates,PRC DELEGATED CO-COMMISSIONING,NHS ROTHERHAM CCG GP PRACTICE,27185082,123.21
Department of Health,NHS Rotherham CCG,31/05/2019,C&M-PMS QOF Aspiration,PRC DELEGATED CO-COMMISSIONING,NHS ROTHERHAM CCG GP PRACTICE,27185082,"7,577.85"
Department of Health,NHS Rotherham CCG,31/05/2019,Prescribing,MEDICINES MANAGEMENT - CLINICAL,FRESENIUS KABI LTD,27288885,"34,933.71"
Department of Health,NHS Rotherham CCG,31/05/2019,C&M-APMS Contract Value,PRC DELEGATED CO-COMMISSIONING,NHS ROTHERHAM CCG GP PRACTICE,27185084,"74,605.68"
Department of Health,NHS Rotherham CCG,31/05/2019,C&M-APMS Prem Actual Rent,PRC DELEGATED CO-COMMISSIONING,NHS ROTHERHAM CCG GP PRACTICE,27185084,"2,083.33"
Department of Health,NHS Rotherham CCG,31/05/2019,C&M-APMS Prem Healthcentre Rent,PRC DELEGATED CO-COMMISSIONING,NHS ROTHERHAM CCG GP PRACTICE,27185084,"4,500.00"
Department of Health,NHS Rotherham CCG,31/05/2019,C&M-PMS QOF Aspiration,PRC DELEGATED CO-COMMISSIONING,NHS ROTHERHAM CCG GP PRACTICE,27185084,"5,449.13"
Department of Health,NHS Rotherham CCG,31/05/2019,Apprenticeship Levy Payable,BALANCE SHEET,HMRC,27233002,693.00
Department of Health,NHS Rotherham CCG,31/05/2019,Income tax <1Yr,BALANCE SHEET,HMRC,27233002,"58,505.80"
Department of Health,NHS Rotherham CCG,31/05/2019,Income tax <1Yr-Student Loans,BALANCE SHEET,HMRC,27233002,324.00
Department of Health,NHS Rotherham CCG,31/05/2019,National Insurance < 1 yr-NI- ERS,BALANCE SHEET,HMRC,27233002,"41,483.75"
Department of Health,NHS Rotherham CCG,31/05/2019,National Insurance < 1 yr-NI-EES,BALANCE SHEET,HMRC,27233002,"31,726.17"
Department of Health,NHS Rotherham CCG,31/05/2019,Statutory Mat Pay < 1 yr,BALANCE SHEET,HMRC,27233002,-69.90
Department of Health,NHS Rotherham CCG,31/05/2019,NHS Recbles <1Yr- CHC Risk Pool Con,BALANCE SHEET,KEYPOINT LAW LLP,27372122,"45,019.03"
Department of Health,NHS Rotherham CCG,31/05/2019,LPF Management Fees,BUSINESS INFORMATICS,KIER BUSINESS SERVICES LTD,27154615,"25,282.80"
Department of Health,NHS Rotherham CCG,43585,Hcare Srv Rec NHS Trust-Contract Baseline,ACUTE COMMISSIONING,LEEDS TEACHING HOSPITALS NHS TRUST,26976058,"25,642.00"
Department of Health,NHS Rotherham CCG,31/05/2019,C&M-PMS Contract Value,PRC DELEGATED CO-COMMISSIONING,NHS ROTHERHAM CCG GP PRACTICE,27190695,"119,110.49"
Department of Health,NHS Rotherham CCG,31/05/2019,C&M-PMS DES Learn Dsblty Hlth Chk,PRC DELEGATED CO-COMMISSIONING,NHS ROTHERHAM CCG GP PRACTICE,27190695,"1,820.00"
Department of Health,NHS Rotherham CCG,31/05/2019,C&M-PMS Prem Actual Rent,PRC DELEGATED CO-COMMISSIONING,NHS ROTHERHAM CCG GP PRACTICE,27190695,"11,987.51"
Department of Health,NHS Rotherham CCG,31/05/2019,C&M-PMS Prem Healthcentre Rent,PRC DELEGATED CO-COMMISSIONING,NHS ROTHERHAM CCG GP PRACTICE,27190695,"1,127.91"
Department of Health,NHS Rotherham CCG,31/05/2019,C&M-PMS Prem Notional Rent,PRC DELEGATED CO-COMMISSIONING,NHS ROTHERHAM CCG GP PRACTICE,27190695,"7,326.17"
Department of Health,NHS Rotherham CCG,31/05/2019,C&M-PMS Prem Rates,PRC DELEGATED CO-COMMISSIONING,NHS ROTHERHAM CCG GP PRACTICE,27190695,"4,410.00"
Department of Health,NHS Rotherham CCG,31/05/2019,C&M-PMS QOF Aspiration,PRC DELEGATED CO-COMMISSIONING,NHS ROTHERHAM CCG GP PRACTICE,27190695,"12,029.07"
Department of Health,NHS Rotherham CCG,31/05/2019,C&M-PMS Contract Value,PRC DELEGATED CO-COMMISSIONING,NHS ROTHERHAM CCG GP PRACTICE,27185087,"52,928.90"
Department of Health,NHS Rotherham CCG,31/05/2019,C&M-PMS DES Learn Dsblty Hlth Chk,PRC DELEGATED CO-COMMISSIONING,NHS ROTHERHAM CCG GP PRACTICE,27185087,700.00
Department of Health,NHS Rotherham CCG,31/05/2019,C&M-PMS PCO Other,PRC DELEGATED CO-COMMISSIONING,NHS ROTHERHAM CCG GP PRACTICE,27185087,"4,136.00"
Department of Health,NHS Rotherham CCG,31/05/2019,C&M-PMS Prem Healthcentre Rent,PRC DELEGATED CO-COMMISSIONING,NHS ROTHERHAM CCG GP PRACTICE,27185087,"3,954.56"
Department of Health,NHS Rotherham CCG,31/05/2019,C&M-PMS QOF Aspiration,PRC DELEGATED CO-COMMISSIONING,NHS ROTHERHAM CCG GP PRACTICE,27185087,"5,794.69"
Department of Health,NHS Rotherham CCG,31/05/2019,Clinical&Medical-Commercial Sector,WHEELCHAIR SERVICE,MEDEQUIP ASSISTIVE TECHNOLOGY LTD,27333575,"157,987.20"
Department of Health,NHS Rotherham CCG,31/05/2019,Clinical&Medical-Commercial Sector,WHEELCHAIR SERVICE,MEDEQUIP ASSISTIVE TECHNOLOGY LTD,27391036,"41,435.05"
Department of Health,NHS Rotherham CCG,31/05/2019,C&M-GMS PCO Other,PRC DELEGATED CO-COMMISSIONING,NHS ENGLAND,27141985,"5,067.15"
Department of Health,NHS Rotherham CCG,31/05/2019,C&M-GMS Prem Other,PRC DELEGATED CO-COMMISSIONING,NHS ENGLAND,27141985,"2,249.76"
Department of Health,NHS Rotherham CCG,31/05/2019,Contract- Refuse & Clinical Waste,PRC DELEGATED CO-COMMISSIONING,NHS ENGLAND,27141985,"15,187.98"
Department of Health,NHS Rotherham CCG,31/05/2019,legal fees,PRC DELEGATED CO-COMMISSIONING,NHS ENGLAND,27141985,"4,279.68"
Department of Health,NHS Rotherham CCG,31/05/2019,Computer Network Costs,PRIMARY CARE IT,PHOENIX PARTNERSHIP (LEEDS) LTD,27220220,"27,581.04"
Department of Health,NHS Rotherham CCG,31/05/2019,Oth Travel Costs-Patient Transport,PATIENT TRANSPORT,PREMIER CARE DIRECT LTD,27136985,"47,297.42"
Department of Health,NHS Rotherham CCG,31/05/2019,Hcare Srv Rec Fdtn Trust-Contract Baseline,MENTAL HEALTH CONTRACTS,ROTHERHAM DONCASTER & SOUTH HUMBER MENTAL HEALTH NHS FOUNDATION TRUST,27253412,"2,436,698.75"
Department of Health,NHS Rotherham CCG,31/05/2019,Hcare Srv Rec Fdtn Trust-Contract Baseline,LEARNING DIFFICULTIES,ROTHERHAM DONCASTER & SOUTH HUMBER MENTAL HEALTH NHS FOUNDATION TRUST,27253416,"192,090.54"
Department of Health,NHS Rotherham CCG,31/05/2019,Cont Care- Palliative Care,CHC ADULT FULLY FUNDED,ROTHERHAM HOSPICE TRUST (THE),27154622,"42,857.78"
Department of Health,NHS Rotherham CCG,43585,Clinical&Medical-Clinical Other,WHEELCHAIR SERVICE,ROTHERHAM NHS FOUNDATION TRUST,27015083,"35,742.28"
Department of Health,NHS Rotherham CCG,43585,Oth Travel Costs-Training Trav&Subs,MEDICINES MANAGEMENT - CLINICAL,ROTHERHAM NHS FOUNDATION TRUST,26936283,169.12
Department of Health,NHS Rotherham CCG,43585,Seconded-Basic Sal-Staff fm oth org,MEDICINES MANAGEMENT - CLINICAL,ROTHERHAM NHS FOUNDATION TRUST,26936283,"36,522.91"
Department of Health,NHS Rotherham CCG,43585,Stationery,MEDICINES MANAGEMENT - CLINICAL,ROTHERHAM NHS FOUNDATION TRUST,26936283,791.75
Department of Health,NHS Rotherham CCG,43585,Computer Network Costs,IM&T,ROTHERHAM NHS FOUNDATION TRUST,26917850,"57,332.00"
Department of Health,NHS Rotherham CCG,43585,Hcare Srv Rec Fdtn Trust-Contract Baseline,ACUTE COMMISSIONING,ROTHERHAM NHS FOUNDATION TRUST,27051633,"12,803,733.00"
Department of Health,NHS Rotherham CCG,43585,Hcare Srv Rec Fdtn Trust-Contract Baseline,COMMUNITY SERVICES,ROTHERHAM NHS FOUNDATION TRUST,27051633,"2,369,859.00"
Department of Health,NHS Rotherham CCG,43585,Computer Hardware Purch,PRIMARY CARE IT,ROTHERHAM NHS FOUNDATION TRUST,26936269,"119,162.00"
Department of Health,NHS Rotherham CCG,43585,Hcare Srv Rec Fdtn Trust-Contract Baseline,ACUTE COMMISSIONING,SHEFFIELD CHILDRENS NHS FOUNDATION TRUST,27033996,"182,802.28"
Department of Health,NHS Rotherham CCG,31/05/2019,Hlthcre-Foundation Trsts,LEARNING DIFFICULTIES,SHEFFIELD HEALTH & SOCIAL CARE NHS FOUNDATION TRUST,27083335,"51,203.15"
Department of Health,NHS Rotherham CCG,43585,Hcare Srv Rec Fdtn Trust-Contract Baseline,MENTAL HEALTH CONTRACTS,SHEFFIELD HEALTH & SOCIAL CARE NHS FOUNDATION TRUST,26936280,"36,715.42"
Department of Health,NHS Rotherham CCG,43585,Hcare Srv Rec Fdtn Trust-Contract Baseline,ACUTE COMMISSIONING,SHEFFIELD TEACHING HOSPITALS NHS FOUNDATION TRUST,27051597,"206,494.00"
Department of Health,NHS Rotherham CCG,43585,Hcare Srv Rec Fdtn Trust-Contract Baseline,ACUTE COMMISSIONING,SHEFFIELD TEACHING HOSPITALS NHS FOUNDATION TRUST,27051629,"2,011,193.00"
Department of Health,NHS Rotherham CCG,43585,Hcare Srv Rec Fdtn Trust-Contract Baseline,ACUTE COMMISSIONING,SHEFFIELD TEACHING HOSPITALS NHS FOUNDATION TRUST,27051598,"-394,619.00"
Department of Health,NHS Rotherham CCG,31/05/2019,Clinical&Medical-Commercial Sector,NCAS/OATS,SPAMEDICA LTD,27209867,"44,144.50"
Department of Health,NHS Rotherham CCG,31/05/2019,C&M-PMS Contract Value,PRC DELEGATED CO-COMMISSIONING,NHS ROTHERHAM CCG GP PRACTICE,27185085,-80.22
Department of Health,NHS Rotherham CCG,31/05/2019,C&M-PMS GP Statutory Levy,PRC DELEGATED CO-COMMISSIONING,NHS ROTHERHAM CCG GP PRACTICE,27185085,-469.80
Department of Health,NHS Rotherham CCG,31/05/2019,C&M-PMS Out of Hours Opt Outs,PRC DELEGATED CO-COMMISSIONING,NHS ROTHERHAM CCG GP PRACTICE,27185085,"-5,980.50"
Department of Health,NHS Rotherham CCG,31/05/2019,C&M-PMS Voluntary Levy,PRC DELEGATED CO-COMMISSIONING,NHS ROTHERHAM CCG GP PRACTICE,27185085,-69.09
Department of Health,NHS Rotherham CCG,31/05/2019,ME-PMS GP Pension EEs-PMS,PRC DELEGATED CO-COMMISSIONING,NHS ROTHERHAM CCG GP PRACTICE,27185085,"-9,750.83"
Department of Health,NHS Rotherham CCG,31/05/2019,ME-PMS GP Pension ERs Adjs - PMS,PRC DELEGATED CO-COMMISSIONING,NHS ROTHERHAM CCG GP PRACTICE,27185085,"-9,922.20"
Department of Health,NHS Rotherham CCG,31/05/2019,C&M-PMS Contract Value,PRC DELEGATED CO-COMMISSIONING,NHS ROTHERHAM CCG GP PRACTICE,27202567,"127,103.50"
Department of Health,NHS Rotherham CCG,31/05/2019,C&M-PMS Out of Hours Opt Outs,PRC DELEGATED CO-COMMISSIONING,NHS ROTHERHAM CCG GP PRACTICE,27202567,3.78
Department of Health,NHS Rotherham CCG,31/05/2019,C&M-PMS PCO Locum Sickness,PRC DELEGATED CO-COMMISSIONING,NHS ROTHERHAM CCG GP PRACTICE,27202567,"8,757.55"
Department of Health,NHS Rotherham CCG,31/05/2019,C&M-PMS Prem Healthcentre Rent,PRC DELEGATED CO-COMMISSIONING,NHS ROTHERHAM CCG GP PRACTICE,27202567,397.97
Department of Health,NHS Rotherham CCG,31/05/2019,C&M-PMS QOF Aspiration,PRC DELEGATED CO-COMMISSIONING,NHS ROTHERHAM CCG GP PRACTICE,27202567,"13,089.33"
Department of Health,NHS Rotherham CCG,31/05/2019,VAT Cont Out Serv Input Tax <1Yr,BALANCE SHEET,SRCL LTD,27390802,"69,081.09"
Department of Health,NHS Rotherham CCG,31/05/2019,Clinical&Medical-Voluntary Sector,COUNSELLING SERVICES,VOLUNTARY ACTION ROTHERHAM,27154563,"49,288.00"
Department of Health,NHS Rotherham CCG,31/05/2019,Clinical&Medical-Voluntary Sector,COUNSELLING SERVICES,VOLUNTARY ACTION ROTHERHAM,27168067,"140,713.00"
Department of Health,NHS Rotherham CCG,31/05/2019,Hcare Srv Rec NHS Trust-Contract Baseline,AMBULANCE SERVICES,YORKSHIRE AMBULANCE SERVICE NHS TRUST,27209926,"719,948.00"
Department of Health,NHS Rotherham CCG,31/05/2019,Hcare Srv Rec NHS Trust-Contract Baseline,PATIENT TRANSPORT,YORKSHIRE AMBULANCE SERVICE NHS TRUST,27209927,"119,870.35"
Department of Health,NHS Rotherham CCG,31/05/2019,Hcare Srv Rec NHS Trust-Contract Baseline,NHS 111,YORKSHIRE AMBULANCE SERVICE NHS TRUST,27209928,"66,286.17"
,,,,,,,"25,898,914.96"
